[Event "*** SCC Grand Prix: Titled Tuesday Blitz"]
[Site "Chess.com"]
[Date "2020.08.11"]
[Round "10"]
[White "kakarot_001"]
[Black "AlexTriapishko"]
[Result "1/2-1/2"]
[WhiteElo "2818"]
[BlackElo "2686"]
[TimeControl "180+1"]
[EndTime "12:01:26 PDT"]
[Termination "Game drawn by repetition"]

1. e4 {[%clk 0:03:00.9]} 1... c6 {[%clk 0:02:57]} 2. d4 {[%clk 0:03:00.3]} 2...
d5 {[%clk 0:02:56.6]} 3. exd5 {[%clk 0:03:00.9]} 3... cxd5 {[%clk 0:02:56.8]} 4.
Bd3 {[%clk 0:03:01.4]} 4... Nf6 {[%clk 0:02:57.3]} 5. c3 {[%clk 0:03:01.7]} 5...
Bg4 {[%clk 0:02:57.9]} 6. Qb3 {[%clk 0:03:01.1]} 6... Qc7 {[%clk 0:02:58.4]} 7.
h3 {[%clk 0:02:58.3]} 7... Bh5 {[%clk 0:02:58.6]} 8. Nd2 {[%clk 0:02:52.3]} 8...
e6 {[%clk 0:02:51.9]} 9. Ngf3 {[%clk 0:02:52]} 9... Nc6 {[%clk 0:02:52.4]} 10.
O-O {[%clk 0:02:50.4]} 10... Bd6 {[%clk 0:02:52.3]} 11. Re1 {[%clk 0:02:50.4]}
11... O-O {[%clk 0:02:43.5]} 12. Be2 {[%clk 0:02:38.9]} 12... Rab8 {[%clk
0:02:28.2]} 13. Qd1 {[%clk 0:02:37.5]} 13... b5 {[%clk 0:02:20.6]} 14. a3 {[%clk
0:02:34.5]} 14... a5 {[%clk 0:02:03]} 15. b4 {[%clk 0:02:34.4]} 15... a4 {[%clk
0:02:03.3]} 16. Nf1 {[%clk 0:02:28.7]} 16... Ne4 {[%clk 0:01:59.9]} 17. Bd2
{[%clk 0:02:27.7]} 17... Ne7 {[%clk 0:01:44.2]} 18. Rc1 {[%clk 0:02:27.2]} 18...
Bf4 {[%clk 0:01:06.8]} 19. Bxf4 {[%clk 0:02:21.7]} 19... Qxf4 {[%clk 0:01:07.7]}
20. N1d2 {[%clk 0:02:14.8]} 20... Bxf3 {[%clk 0:00:58]} 21. Nxf3 {[%clk
0:02:12.9]} 21... Rfc8 {[%clk 0:00:58.5]} 22. Qd3 {[%clk 0:02:00.9]} 22... Nf5
{[%clk 0:00:57.7]} 23. Rf1 {[%clk 0:01:48.5]} 23... Nfd6 {[%clk 0:00:43.9]} 24.
g3 {[%clk 0:01:42.9]} 24... Qh6 {[%clk 0:00:30.4]} 25. Ne5 {[%clk 0:01:28.1]}
25... Nc4 {[%clk 0:00:19.6]} 26. Nxc4 {[%clk 0:01:23.5]} 26... Rxc4 {[%clk
0:00:19.1]} 27. Bf3 {[%clk 0:01:10.8]} 27... Nd2 {[%clk 0:00:14.7]} 28. Rfd1
{[%clk 0:01:10.4]} 28... Nxf3+ {[%clk 0:00:12.7]} 29. Qxf3 {[%clk 0:01:11.3]}
29... Qxh3 {[%clk 0:00:13.5]} 30. Rd3 {[%clk 0:01:08.4]} 30... Rbc8 {[%clk
0:00:12.9]} 31. Re1 {[%clk 0:01:07.9]} 31... Qh6 {[%clk 0:00:11]} 32. Ree3
{[%clk 0:01:07.6]} 32... Qf6 {[%clk 0:00:10.5]} 33. Qd1 {[%clk 0:01:05.5]} 33...
g6 {[%clk 0:00:10.4]} 34. f4 {[%clk 0:01:03.5]} 34... h5 {[%clk 0:00:09.6]} 35.
Kg2 {[%clk 0:01:03]} 35... Kg7 {[%clk 0:00:06.8]} 36. Qh1 {[%clk 0:00:55.8]}
36... Rh8 {[%clk 0:00:04.3]} 37. Qh4 {[%clk 0:00:55.8]} 37... Qxh4 {[%clk
0:00:04.2]} 38. gxh4 {[%clk 0:00:56.7]} 38... Kf6 {[%clk 0:00:05.1]} 39. Re5
{[%clk 0:00:56.4]} 39... Rhc8 {[%clk 0:00:05.4]} 40. Ree3 {[%clk 0:00:56.4]}
40... Ke7 {[%clk 0:00:06]} 41. Kf3 {[%clk 0:00:55.7]} 41... Kd6 {[%clk
0:00:06.9]} 42. Ke2 {[%clk 0:00:56.2]} 42... R4c7 {[%clk 0:00:07.8]} 43. Kd2
{[%clk 0:00:56.4]} 43... f6 {[%clk 0:00:06.9]} 44. Rg3 {[%clk 0:00:56.1]} 44...
Rg8 {[%clk 0:00:07.4]} 45. Rde3 {[%clk 0:00:55.8]} 45... Rcg7 {[%clk 0:00:06.8]}
46. Rg2 {[%clk 0:00:34.2]} 46... g5 {[%clk 0:00:07.1]} 47. fxg5 {[%clk
0:00:34.2]} 47... fxg5 {[%clk 0:00:08]} 48. hxg5 {[%clk 0:00:34.8]} 48... Rxg5
{[%clk 0:00:08.7]} 49. Rge2 {[%clk 0:00:35.4]} 49... R8g6 {[%clk 0:00:06.7]} 50.
Rh3 {[%clk 0:00:35.3]} 50... Rg2 {[%clk 0:00:04.4]} 51. Rxh5 {[%clk 0:00:33]}
51... Rxe2+ {[%clk 0:00:04.7]} 52. Kxe2 {[%clk 0:00:33.5]} 52... Rg2+ {[%clk
0:00:05.6]} 53. Kd3 {[%clk 0:00:33.4]} 53... Ra2 {[%clk 0:00:06.2]} 54. Rh8
{[%clk 0:00:31.6]} 54... Rxa3 {[%clk 0:00:05]} 55. Rb8 {[%clk 0:00:32.1]} 55...
Kc6 {[%clk 0:00:05.4]} 56. Rc8+ {[%clk 0:00:31.9]} 56... Kb7 {[%clk 0:00:03.4]}
57. Re8 {[%clk 0:00:31.7]} 57... Rb3 {[%clk 0:00:02.2]} 58. Kc2 {[%clk
0:00:27.7]} 58... Ra3 {[%clk 0:00:02.7]} 59. Kb2 {[%clk 0:00:28]} 59... Rb3+
{[%clk 0:00:03.2]} 60. Kc2 {[%clk 0:00:28.5]} 60... Ra3 {[%clk 0:00:03.8]} 61.
Re7+ {[%clk 0:00:28.4]} 61... Kb6 {[%clk 0:00:03.6]} 62. Rxe6+ {[%clk
0:00:28.5]} 62... Kc7 {[%clk 0:00:04.2]} 63. Kb2 {[%clk 0:00:20.7]} 63... Rb3+
{[%clk 0:00:04.4]} 64. Kc2 {[%clk 0:00:21]} 64... Ra3 {[%clk 0:00:05]} 65. Re5
{[%clk 0:00:19.9]} 65... Kd6 {[%clk 0:00:03.6]} 66. Re8 {[%clk 0:00:16]} 66...
Ra2+ {[%clk 0:00:03.7]} 67. Kd3 {[%clk 0:00:16.5]} 67... Rg2 {[%clk 0:00:01.9]}
68. Rd8+ {[%clk 0:00:16.5]} 68... Kc6 {[%clk 0:00:02.1]} 69. Ra8 {[%clk
0:00:17.4]} 69... Kb7 {[%clk 0:00:01.6]} 70. Ra5 {[%clk 0:00:16.5]} 70... Kb6
{[%clk 0:00:02]} 71. Ra8 {[%clk 0:00:16.9]} 71... Rg7 {[%clk 0:00:02.2]} 72. Rd8
{[%clk 0:00:14]} 72... Kc7 {[%clk 0:00:01.9]} 73. Ra8 {[%clk 0:00:13.9]} 73...
Kb7 {[%clk 0:00:01.6]} 74. Rd8 {[%clk 0:00:12.8]} 74... a3 {[%clk 0:00:01.6]}
75. Kc2 {[%clk 0:00:09.8]} 75... Rg2+ {[%clk 0:00:01.6]} 76. Kb1 {[%clk
0:00:08.8]} 76... a2+ {[%clk 0:00:02.5]} 77. Ka1 {[%clk 0:00:09]} 77... Kc6
{[%clk 0:00:03.4]} 78. Rc8+ {[%clk 0:00:08.9]} 78... Kb6 {[%clk 0:00:04]} 79.
Rc5 {[%clk 0:00:09.8]} 79... Rc2 {[%clk 0:00:04.1]} 80. Rxd5 {[%clk 0:00:09.8]}
80... Rxc3 {[%clk 0:00:04.5]} 81. Kxa2 {[%clk 0:00:10.3]} 81... Rd3 {[%clk
0:00:04.6]} 82. Kb2 {[%clk 0:00:10.1]} 82... Kc6 {[%clk 0:00:05.1]} 83. Rc5+
{[%clk 0:00:10.3]} 83... Kd6 {[%clk 0:00:05.5]} 84. Rxb5 {[%clk 0:00:08.9]}
84... Rxd4 {[%clk 0:00:06]} 85. Kb3 {[%clk 0:00:09.4]} 85... Kc6 {[%clk
0:00:06.2]} 86. Ka4 {[%clk 0:00:09.1]} 86... Rd1 {[%clk 0:00:05.6]} 87. Rc5+
{[%clk 0:00:06.1]} 87... Kb6 {[%clk 0:00:06.1]} 88. Rc2 {[%clk 0:00:06.9]} 88...
Ra1+ {[%clk 0:00:05.9]} 89. Kb3 {[%clk 0:00:07.4]} 89... Kb5 {[%clk 0:00:05.4]}
90. Rc5+ {[%clk 0:00:04.9]} 90... Kb6 {[%clk 0:00:05.9]} 91. Rc3 {[%clk
0:00:05.8]} 91... Kb5 {[%clk 0:00:05.3]} 92. Rc5+ {[%clk 0:00:06]} 92... Kb6
{[%clk 0:00:05.6]} 93. Rf5 {[%clk 0:00:06.5]} 93... Rb1+ {[%clk 0:00:05.3]} 94.
Kc3 {[%clk 0:00:07.1]} 94... Rc1+ {[%clk 0:00:05.6]} 95. Kb2 {[%clk 0:00:07.6]}
95... Rg1 {[%clk 0:00:03.9]} 96. Rf3 {[%clk 0:00:05.4]} 96... Rg2+ {[%clk
0:00:03.4]} 97. Kb3 {[%clk 0:00:05.4]} 97... Rg1 {[%clk 0:00:04.3]} 98. Rc3
{[%clk 0:00:04]} 98... Rb1+ {[%clk 0:00:03.9]} 99. Kc4 {[%clk 0:00:03.3]} 99...
Rg1 {[%clk 0:00:03.7]} 100. Rd3 {[%clk 0:00:03.6]} 100... Rg4+ {[%clk
0:00:03.9]} 101. Rd4 {[%clk 0:00:03.6]} 101... Rxd4+ {[%clk 0:00:03.8]} 102.
Kxd4 {[%clk 0:00:04.5]} 102... Kb5 {[%clk 0:00:04.7]} 103. Kc3 {[%clk
0:00:05.3]} 103... Kb6 {[%clk 0:00:05.6]} 104. Kc4 {[%clk 0:00:06.2]} 104... Kc6
{[%clk 0:00:06.1]} 105. b5+ {[%clk 0:00:07.1]} 105... Kb6 {[%clk 0:00:07]} 106.
Kb4 {[%clk 0:00:08]} 106... Kb7 {[%clk 0:00:07.7]} 107. Ka4 {[%clk 0:00:08.9]}
107... Kb6 {[%clk 0:00:08]} 108. Kb4 {[%clk 0:00:09.8]} 108... Kb7 {[%clk
0:00:08.9]} 109. Kc5 {[%clk 0:00:10.7]} 109... Kc7 {[%clk 0:00:09.2]} 110. b6+
{[%clk 0:00:11.2]} 110... Kb7 {[%clk 0:00:09.8]} 111. Kb5 {[%clk 0:00:12.1]}
111... Kb8 {[%clk 0:00:10.3]} 112. Ka6 {[%clk 0:00:13]} 112... Ka8 {[%clk
0:00:10.6]} 113. Ka5 {[%clk 0:00:13.6]} 113... Kb7 {[%clk 0:00:10.7]} 114. Kb5
{[%clk 0:00:14.1]} 114... Kb8 {[%clk 0:00:11.6]} 115. Kc5 {[%clk 0:00:13.8]}
115... Kb7 {[%clk 0:00:11.7]} 116. Kb5 {[%clk 0:00:14]} 1/2-1/2

[Event "*** SCC Grand Prix: Titled Tuesday Blitz"]
[Site "Chess.com"]
[Date "2020.08.11"]
[Round "10"]
[White "IMHansNiemann"]
[Black "Bulldog167"]
[Result "1/2-1/2"]
[WhiteElo "2913"]
[BlackElo "2746"]
[TimeControl "180+1"]
[EndTime "12:02:51 PDT"]
[Termination "Game drawn by 50-move rule"]

1. d4 {[%clk 0:03:00.9]} 1... Nf6 {[%clk 0:02:55.6]} 2. c4 {[%clk 0:02:59.2]}
2... c5 {[%clk 0:02:54.4]} 3. d5 {[%clk 0:02:59.2]} 3... e6 {[%clk 0:02:54.9]}
4. Nc3 {[%clk 0:02:58.9]} 4... exd5 {[%clk 0:02:55.5]} 5. cxd5 {[%clk
0:02:59.8]} 5... d6 {[%clk 0:02:56.1]} 6. Nf3 {[%clk 0:02:59.2]} 6... g6 {[%clk
0:02:55.9]} 7. Bf4 {[%clk 0:02:59.6]} 7... a6 {[%clk 0:02:56.2]} 8. a4 {[%clk
0:02:59.1]} 8... Bg7 {[%clk 0:02:56.2]} 9. h3 {[%clk 0:02:59.7]} 9... O-O {[%clk
0:02:56.3]} 10. e3 {[%clk 0:02:59.8]} 10... Ne8 {[%clk 0:02:56.5]} 11. Be2
{[%clk 0:02:59.6]} 11... Nd7 {[%clk 0:02:56.9]} 12. O-O {[%clk 0:03:00]} 12...
Qe7 {[%clk 0:02:56]} 13. Qc2 {[%clk 0:02:59.7]} 13... Rb8 {[%clk 0:02:55.3]} 14.
Nd2 {[%clk 0:02:58.2]} 14... Ne5 {[%clk 0:02:54.4]} 15. Bg3 {[%clk 0:02:57]}
15... f5 {[%clk 0:02:50.3]} 16. Rae1 {[%clk 0:02:56.4]} 16... Nc7 {[%clk
0:02:42.4]} 17. a5 {[%clk 0:02:53]} 17... b5 {[%clk 0:02:33.8]} 18. axb6 {[%clk
0:02:50.2]} 18... Rxb6 {[%clk 0:02:34]} 19. f4 {[%clk 0:02:34.8]} 19... Nf7
{[%clk 0:02:34.2]} 20. Bd3 {[%clk 0:02:24.8]} 20... Nb5 {[%clk 0:02:01]} 21. Nc4
{[%clk 0:02:20.8]} 21... Rb8 {[%clk 0:01:58.7]} 22. e4 {[%clk 0:02:13.6]} 22...
Nd4 {[%clk 0:01:57.7]} 23. Qf2 {[%clk 0:02:10.1]} 23... fxe4 {[%clk 0:01:48.5]}
24. Nxe4 {[%clk 0:02:09.8]} 24... Qd8 {[%clk 0:01:40.9]} 25. Bh4 {[%clk
0:02:06.9]} 25... Qc7 {[%clk 0:01:31.2]} 26. Nf6+ {[%clk 0:02:06.7]} 26... Kh8
{[%clk 0:01:31.3]} 27. Ne8 {[%clk 0:02:05.9]} 27... Qb7 {[%clk 0:01:09.9]} 28.
Nxg7 {[%clk 0:01:49.6]} 28... Kxg7 {[%clk 0:01:09.6]} 29. Be7 {[%clk 0:01:49.8]}
29... Bf5 {[%clk 0:01:05]} 30. Nxd6 {[%clk 0:01:33.4]} 30... Nxd6 {[%clk
0:00:59.1]} 31. Bxd6 {[%clk 0:01:34.3]} 31... Bxd3 {[%clk 0:00:57.7]} 32. Re7+
{[%clk 0:01:33.9]} 32... Qxe7 {[%clk 0:00:57.3]} 33. Bxe7 {[%clk 0:01:34.8]}
33... Rxf4 {[%clk 0:00:56.6]} 34. Qxf4 {[%clk 0:01:23]} 34... Ne2+ {[%clk
0:00:56.6]} 35. Kh2 {[%clk 0:01:23.3]} 35... Nxf4 {[%clk 0:00:57.3]} 36. Rxf4
{[%clk 0:01:24.1]} 36... Bf5 {[%clk 0:00:34]} 37. Bxc5 {[%clk 0:01:21.9]} 37...
Rb5 {[%clk 0:00:31.8]} 38. b4 {[%clk 0:01:14.4]} 38... a5 {[%clk 0:00:32.2]} 39.
g4 {[%clk 0:01:14.9]} 39... Bd7 {[%clk 0:00:26.3]} 40. Bd4+ {[%clk 0:01:12.8]}
40... Kg8 {[%clk 0:00:25.8]} 41. bxa5 {[%clk 0:01:06.1]} 41... Rxa5 {[%clk
0:00:26]} 42. d6 {[%clk 0:01:00.1]} 42... Rd5 {[%clk 0:00:26.6]} 43. Bf6 {[%clk
0:00:36.4]} 43... Rxd6 {[%clk 0:00:25.6]} 44. Kg3 {[%clk 0:00:37]} 44... h6
{[%clk 0:00:24]} 45. h4 {[%clk 0:00:35.9]} 45... Rd3+ {[%clk 0:00:23.7]} 46. Kf2
{[%clk 0:00:36.1]} 46... h5 {[%clk 0:00:23.4]} 47. gxh5 {[%clk 0:00:28.3]} 47...
gxh5 {[%clk 0:00:24.3]} 48. Bg5 {[%clk 0:00:28.7]} 48... Bg4 {[%clk 0:00:24.3]}
49. Rf6 {[%clk 0:00:28.5]} 49... Kg7 {[%clk 0:00:22.4]} 50. Rb6 {[%clk
0:00:28.3]} 50... Rf3+ {[%clk 0:00:22.6]} 51. Kg2 {[%clk 0:00:28.5]} 51... Ra3
{[%clk 0:00:22.4]} 52. Bf6+ {[%clk 0:00:26.3]} 52... Kf7 {[%clk 0:00:22]} 53.
Bg5 {[%clk 0:00:27]} 53... Kg7 {[%clk 0:00:21.9]} 54. Kf2 {[%clk 0:00:26.7]}
54... Rf3+ {[%clk 0:00:21.6]} 55. Ke1 {[%clk 0:00:27]} 55... Rd3 {[%clk
0:00:20.5]} 56. Ra6 {[%clk 0:00:20.7]} 56... Rb3 {[%clk 0:00:19.5]} 57. Kd2
{[%clk 0:00:20.3]} 57... Kf7 {[%clk 0:00:19.1]} 58. Kc2 {[%clk 0:00:20.2]} 58...
Rf3 {[%clk 0:00:18.8]} 59. Kd2 {[%clk 0:00:19.6]} 59... Rb3 {[%clk 0:00:18.8]}
60. Rf6+ {[%clk 0:00:18.5]} 60... Kg7 {[%clk 0:00:17.9]} 61. Rd6 {[%clk
0:00:16.7]} 61... Rh3 {[%clk 0:00:17.1]} 62. Kc2 {[%clk 0:00:16.4]} 62... Bf5+
{[%clk 0:00:17]} 63. Kd2 {[%clk 0:00:15.3]} 63... Bg4 {[%clk 0:00:17.6]} 64.
Bf6+ {[%clk 0:00:14]} 64... Kg6 {[%clk 0:00:17.2]} 65. Bg5+ {[%clk 0:00:14.9]}
65... Kf5 {[%clk 0:00:17]} 66. Rd4 {[%clk 0:00:14.8]} 66... Ke5 {[%clk
0:00:15.5]} 67. Rf4 {[%clk 0:00:13.8]} 67... Rxh4 {[%clk 0:00:10.7]} 68. Rf8
{[%clk 0:00:09.5]} 68... Rh2+ {[%clk 0:00:09.5]} 69. Ke3 {[%clk 0:00:09.7]}
69... Rh3+ {[%clk 0:00:09.9]} 70. Kf2 {[%clk 0:00:09.9]} 70... Rb3 {[%clk
0:00:08.4]} 71. Kg2 {[%clk 0:00:08.6]} 71... Bh3+ {[%clk 0:00:07.2]} 72. Kf2
{[%clk 0:00:08.5]} 72... Bg4 {[%clk 0:00:08.1]} 73. Kg2 {[%clk 0:00:08.8]} 73...
Rb2+ {[%clk 0:00:07.5]} 74. Kg3 {[%clk 0:00:09]} 74... Rb1 {[%clk 0:00:07.9]}
75. Bf4+ {[%clk 0:00:07.6]} 75... Ke6 {[%clk 0:00:08]} 76. Re8+ {[%clk
0:00:07.5]} 76... Kf5 {[%clk 0:00:07.8]} 77. Re5+ {[%clk 0:00:08.1]} 77... Kf6
{[%clk 0:00:08]} 78. Ra5 {[%clk 0:00:09]} 78... Rh1 {[%clk 0:00:07.3]} 79. Bg5+
{[%clk 0:00:09]} 79... Kg6 {[%clk 0:00:07.5]} 80. Kf4 {[%clk 0:00:08.4]} 80...
Rf1+ {[%clk 0:00:07.2]} 81. Kg3 {[%clk 0:00:09]} 81... Rf3+ {[%clk 0:00:07.7]}
82. Kg2 {[%clk 0:00:09.4]} 82... Rb3 {[%clk 0:00:08]} 83. Bf4 {[%clk 0:00:09.5]}
83... Bf5 {[%clk 0:00:05.7]} 84. Bg3 {[%clk 0:00:09.4]} 84... Be4+ {[%clk
0:00:05.7]} 85. Kh2 {[%clk 0:00:08.8]} 85... Rb2+ {[%clk 0:00:05.3]} 86. Kh3
{[%clk 0:00:04.3]} 86... Bf5+ {[%clk 0:00:05.7]} 87. Rxf5 {[%clk 0:00:04.6]}
87... Kxf5 {[%clk 0:00:05.2]} 88. Bh2 {[%clk 0:00:05.5]} 88... Rb4 {[%clk
0:00:04.4]} 89. Bc7 {[%clk 0:00:04.9]} 89... Rc4 {[%clk 0:00:05.3]} 90. Bd6
{[%clk 0:00:04.7]} 90... Kg5 {[%clk 0:00:05.8]} 91. Bb8 {[%clk 0:00:04.6]} 91...
Rc3+ {[%clk 0:00:05.8]} 92. Kh2 {[%clk 0:00:04.5]} 92... Kg4 {[%clk 0:00:06.7]}
93. Bd6 {[%clk 0:00:02.6]} 93... Rb3 {[%clk 0:00:07.6]} 94. Kg2 {[%clk
0:00:02.2]} 94... Rb2+ {[%clk 0:00:07.4]} 95. Kh1 {[%clk 0:00:01.8]} 95... h4
{[%clk 0:00:08.3]} 96. Kg1 {[%clk 0:00:02.3]} 96... Rd2 {[%clk 0:00:07.1]} 97.
Bc7 {[%clk 0:00:02.4]} 97... Rc2 {[%clk 0:00:08]} 98. Bb8 {[%clk 0:00:02.5]}
98... Kf3 {[%clk 0:00:08.3]} 99. Bd6 {[%clk 0:00:01.3]} 99... Kg4 {[%clk
0:00:08.7]} 100. Kh1 {[%clk 0:00:02.2]} 100... Kh3 {[%clk 0:00:09.1]} 101. Kg1
{[%clk 0:00:01.9]} 101... Rc1+ {[%clk 0:00:09.7]} 102. Kf2 {[%clk 0:00:02.5]}
102... Rc6 {[%clk 0:00:10.4]} 103. Be5 {[%clk 0:00:02.9]} 103... Re6 {[%clk
0:00:11]} 104. Bb8 {[%clk 0:00:03.4]} 104... Rg6 {[%clk 0:00:11.2]} 105. Bc7
{[%clk 0:00:03.3]} 105... Rg7 {[%clk 0:00:11.5]} 106. Bd6 {[%clk 0:00:03.6]}
106... Rg4 {[%clk 0:00:11.4]} 107. Be5 {[%clk 0:00:03.8]} 107... Re4 {[%clk
0:00:11.6]} 108. Bd6 {[%clk 0:00:04.3]} 108... Re6 {[%clk 0:00:12.5]} 109. Bc7
{[%clk 0:00:04.7]} 109... Kg4 {[%clk 0:00:12.9]} 110. Kg2 {[%clk 0:00:04.8]}
110... Re2+ {[%clk 0:00:13]} 111. Kh1 {[%clk 0:00:05.2]} 111... Ra2 {[%clk
0:00:13.9]} 112. Kg1 {[%clk 0:00:05.7]} 112... Rc2 {[%clk 0:00:12.8]} 113. Bd6
{[%clk 0:00:06.1]} 113... Kf3 {[%clk 0:00:13.1]} 114. Kh1 {[%clk 0:00:06.2]}
114... Kf2 {[%clk 0:00:11.8]} 115. Kh2 {[%clk 0:00:05.1]} 115... Kf3+ {[%clk
0:00:10.7]} 116. Kh3 {[%clk 0:00:05]} 116... Rc1 {[%clk 0:00:11.2]} 117. Kxh4
{[%clk 0:00:04.8]} 117... Rg1 {[%clk 0:00:10.3]} 118. Kh5 {[%clk 0:00:05.1]}
118... Ke4 {[%clk 0:00:09.7]} 119. Kh4 {[%clk 0:00:05.4]} 119... Kf5 {[%clk
0:00:09.9]} 120. Bb8 {[%clk 0:00:05.4]} 120... Rg6 {[%clk 0:00:10.3]} 121. Bc7
{[%clk 0:00:05.3]} 121... Rg7 {[%clk 0:00:10.5]} 122. Bb8 {[%clk 0:00:05.2]}
122... Rb7 {[%clk 0:00:09.5]} 123. Bd6 {[%clk 0:00:05.1]} 123... Rd7 {[%clk
0:00:09]} 124. Bb8 {[%clk 0:00:05.5]} 124... Rd4+ {[%clk 0:00:08.8]} 125. Kg3
{[%clk 0:00:05.5]} 125... Rd3+ {[%clk 0:00:09.2]} 126. Kf2 {[%clk 0:00:06]}
126... Ke4 {[%clk 0:00:09.9]} 127. Ke2 {[%clk 0:00:06.7]} 127... Rb3 {[%clk
0:00:10.1]} 128. Ba7 {[%clk 0:00:03.8]} 128... Rb2+ {[%clk 0:00:10.7]} 129. Kd1
{[%clk 0:00:04.1]} 129... Kd3 {[%clk 0:00:11.3]} 130. Kc1 {[%clk 0:00:04.8]}
130... Rc2+ {[%clk 0:00:11.7]} 131. Kb1 {[%clk 0:00:05.2]} 131... Rg2 {[%clk
0:00:12.6]} 132. Bb8 {[%clk 0:00:05]} 132... Kc3 {[%clk 0:00:12.9]} 133. Be5+
{[%clk 0:00:05.3]} 133... Kb3 {[%clk 0:00:11.2]} 134. Kc1 {[%clk 0:00:05.9]}
134... Re2 {[%clk 0:00:11.6]} 135. Bh8 {[%clk 0:00:06]} 135... Rg2 {[%clk
0:00:11.7]} 136. Bf6 {[%clk 0:00:05.6]} 136... Kc4 {[%clk 0:00:11.8]} 137. Kb1
{[%clk 0:00:04.9]} 137... Rf2 {[%clk 0:00:10.7]} 138. Bh8 {[%clk 0:00:04.7]}
138... Rg2 {[%clk 0:00:11]} 139. Kc1 {[%clk 0:00:04.8]} 139... Kd3 {[%clk
0:00:11.4]} 140. Kb1 {[%clk 0:00:05.4]} 140... Rc2 {[%clk 0:00:07.6]} 141. Bg7
{[%clk 0:00:05.1]} 141... Rc7 {[%clk 0:00:06.8]} 142. Bh8 {[%clk 0:00:05.3]}
142... Rb7+ {[%clk 0:00:06.9]} 143. Kc1 {[%clk 0:00:04.9]} 143... Rb8 {[%clk
0:00:07.3]} 144. Bg7 {[%clk 0:00:04.9]} 144... Rg8 {[%clk 0:00:07.3]} 145. Bf6
{[%clk 0:00:04.7]} 145... Rg6 {[%clk 0:00:07.9]} 146. Bh8 {[%clk 0:00:04.7]}
146... Rb6 {[%clk 0:00:08.3]} 147. Bg7 {[%clk 0:00:04.2]} 147... Rb7 {[%clk
0:00:08.4]} 148. Bh8 {[%clk 0:00:04.5]} 148... Rh7 {[%clk 0:00:08.8]} 149. Bf6
{[%clk 0:00:04.8]} 149... Rh6 {[%clk 0:00:09.1]} 150. Bg7 {[%clk 0:00:05.1]}
150... Rh2 {[%clk 0:00:09.5]} 151. Bf6 {[%clk 0:00:04.9]} 151... Rc2+ {[%clk
0:00:10.4]} 152. Kb1 {[%clk 0:00:05.1]} 152... Rf2 {[%clk 0:00:10.9]} 153. Bg7
{[%clk 0:00:05.6]} 153... Kc4 {[%clk 0:00:11.2]} 154. Kc1 {[%clk 0:00:05.1]}
154... Kb3 {[%clk 0:00:11.4]} 155. Kd1 {[%clk 0:00:05.5]} 155... Ra2 {[%clk
0:00:11.1]} 156. Bh8 {[%clk 0:00:05.6]} 156... Kc4 {[%clk 0:00:11.4]} 157. Kc1
{[%clk 0:00:06.2]} 157... Rh2 {[%clk 0:00:11.8]} 158. Bg7 {[%clk 0:00:06.4]}
158... Rh7 {[%clk 0:00:10.2]} 159. Bf6 {[%clk 0:00:06.5]} 159... Rh2 {[%clk
0:00:10.1]} 160. Bg7 {[%clk 0:00:06.9]} 160... Rg2 {[%clk 0:00:11]} 161. Bh8
{[%clk 0:00:06.9]} 161... Kd3 {[%clk 0:00:11.9]} 162. Kb1 {[%clk 0:00:07.1]}
162... Kd2 {[%clk 0:00:11.3]} 163. Kb2 {[%clk 0:00:06.4]} 163... Rg8 {[%clk
0:00:11.9]} 164. Be5 {[%clk 0:00:05.7]} 164... Re8 {[%clk 0:00:11.3]} 165. Bd6
{[%clk 0:00:04.1]} 165... Re6 {[%clk 0:00:10.9]} 166. Bb4+ {[%clk 0:00:04.4]}
166... Kd3 {[%clk 0:00:11.1]} 167. Bf8 {[%clk 0:00:04]} 1/2-1/2